fUSD/lending_fUSD_20240530
["ID","MTS","AMOUNT","RATE_DAILY","PERIOD"]
[328224588,1717073478551,-500.0,0.00031186,7]
[328224589,1717073478560,-778.96,0.00031186,7]
[328224590,1717073478570,-500.0,0.00031186,7]
[328224591,1717073478579,-637.15,0.00031186,7]
[328224592,1717073478589,-500.0,0.00031186,7]
[328224593,1717073478599,-500.0,0.00031186,7]
[328224594,1717073478608,-500.0,0.00031186,7]
[328224595,1717073478617,-500.0,0.00031186,7]
[328224596,1717073478626,-522.28,0.00031186,7]
[328224597,1717073478636,-500.0,0.00031186,7]
[328224598,1717073478645,-500.0,0.00031186,7]
[328224599,1717073478654,-500.0,0.00031186,7]
[328224600,1717073478664,-632.76,0.00031186,7]
[328224601,1717073478673,-500.0,0.00031186,7]
[328224602,1717073478683,-500.0,0.00031186,7]
[328224603,1717073478692,-500.0,0.00031186,7]
[328224604,1717073478702,-500.0,0.00031186,7]
[328224605,1717073478711,-500.0,0.00031186,7]
[328224606,1717073478720,-2286.58,0.00031186,7]
[328224607,1717073478729,-500.0,0.00031186,7]
[328224608,1717073478739,-500.0,0.00031186,7]
[328224609,1717073478749,-500.0,0.00031186,7]
[328224610,1717073478760,-500.0,0.00031186,7]
[328224611,1717073478770,-500.0,0.00031186,7]
[328224612,1717073478779,-500.0,0.00031186,7]
[328224613,1717073478788,-500.0,0.00031186,7]
[328224614,1717073478798,-500.0,0.00031186,7]
[328224615,1717073478807,-500.0,0.00031186,7]
[328224616,1717073478817,-500.0,0.00031186,7]
[328224617,1717073478827,-500.0,0.00031186,7]
[328224618,1717073478836,-500.0,0.00031186,7]
[328224619,1717073478846,-500.0,0.00031186,7]
[328224620,1717073478856,-500.0,0.00031187,7]
[328224621,1717073478866,-500.0,0.00031187,7]
[328224622,1717073478875,-500.0,0.00031187,7]
[328224623,1717073478885,-286.44,0.00031187,7]
[328224624,1717073478894,-500.0,0.00031187,7]
[328224625,1717073478903,-500.0,0.00031187,7]
[328224626,1717073478913,-500.0,0.00031187,7]
[328224627,1717073478923,-356.71107853,0.000312,2]
[328224628,1717073478933,-1765.48,0.0003122,7]
[328224629,1717073478945,-626.07570552,0.0003122,7]
[328224630,1717073478955,-500.0,0.0003122,7]
[328224631,1717073478964,-1538.81,0.0003122,7]
[328224632,1717073478973,-500.0,0.0003122,7]
[328224633,1717073478983,-322.87703539,0.00031311,2]
[328224634,1717073479099,-500.0,0.00031439,7]
[328224635,1717073479110,-366.9,0.00031439,7]
[328224636,1717073479120,-500.0,0.00031439,7]
[328224637,1717073479129,-500.0,0.00031459,7]
[328224638,1717073479139,-595.01,0.00031459,7]
[328224639,1717073479149,-500.0,0.00031459,7]
[328224640,1717073479159,-500.0,0.00031459,7]
[328224641,1717073479168,-500.0,0.00031459,7]
[328224642,1717073479178,-500.0,0.00031459,7]
[328224643,1717073479189,-500.0,0.00031459,7]
[328224644,1717073479199,-533.94,0.00031459,7]
[328224645,1717073479208,-500.0,0.00031459,7]
[328224646,1717073479218,-500.0,0.00031459,7]
[328224647,1717073479227,-500.0,0.00031459,7]
[328224648,1717073479237,-500.0,0.00031459,7]
[328224649,1717073479247,-500.0,0.00031459,7]
[328224650,1717073479258,-223.05,0.00031459,7]
[328224651,1717073479267,-556.88,0.00031459,7]
[328224652,1717073479276,-1291.87,0.00031459,7]
[328224653,1717073479286,-500.0,0.00031459,7]
[328224654,1717073479296,-500.0,0.00031459,7]
[328224655,1717073479305,-440.81084845,0.00031459,7]
[328224656,1717073479315,-3455.84,0.00031459,7]
[328224657,1717073479325,-500.0,0.00031459,7]
[328224658,1717073479335,-500.0,0.00031459,7]
[328224659,1717073479344,-361.55,0.00031459,7]
[328224660,1717073479354,-500.0,0.00031459,7]
[328224661,1717073479364,-582.8,0.00031459,7]
[328224662,1717073479374,-500.0,0.00031459,7]
[328224663,1717073479383,-356.55,0.00031459,7]
[328224664,1717073479393,-500.0,0.0003146,7]
[328224665,1717073479402,-500.0,0.0003146,7]
[328224666,1717073479412,-583.39,0.0003146,7]
[328224667,1717073479421,-500.0,0.0003146,7]
[328224668,1717073479431,-500.0,0.0003146,7]
[328224669,1717073479441,-500.0,0.0003146,7]
[328224670,1717073479450,-500.0,0.0003146,7]
[328224671,1717073479460,-500.0,0.0003146,7]
[328224672,1717073479469,-500.0,0.0003146,7]
[328224673,1717073479479,-500.0,0.0003146,7]
[328224674,1717073479488,-500.0,0.0003146,7]
[328224675,1717073479497,-500.0,0.0003146,7]
[328224676,1717073479509,-306.9,0.0003146,7]
[328224677,1717073479518,-500.0,0.0003146,7]
[328224678,1717073479528,-728.3,0.0003146,7]
[328224679,1717073479537,-500.0,0.0003146,7]
[328224680,1717073479547,-500.0,0.0003146,7]
[328224681,1717073479557,-577.14,0.0003146,7]
[328224682,1717073479566,-365.59,0.0003146,7]
[328224683,1717073479575,-500.0,0.0003146,7]
[328224684,1717073479585,-500.0,0.0003146,7]
[328224685,1717073479594,-150.0,0.0003146,7]
[328224686,1717073479603,-500.0,0.0003146,7]
[328224687,1717073479613,-425.25,0.0003146,7]
[328224688,1717073479623,-500.0,0.0003146,7]
[328224689,1717073479632,-500.0,0.0003146,7]
[328224690,1717073479641,-500.0,0.0003146,7]
[328224691,1717073479651,-500.0,0.0003146,7]
[328224692,1717073479660,-500.0,0.0003146,7]
[328224693,1717073479670,-968.37,0.0003146,7]
[328224694,1717073479680,-500.0,0.0003146,7]
[328224695,1717073479690,-341.35,0.0003146,7]
[328224696,1717073479700,-500.0,0.0003146,7]
[328224697,1717073479710,-699.67,0.0003146,7]
[328224698,1717073479719,-500.0,0.0003146,7]
[328224699,1717073479729,-500.0,0.0003146,7]
[328224700,1717073479739,-768.83,0.0003146,7]
[328224701,1717073479748,-693.43,0.0003146,7]
[328224702,1717073479761,-500.0,0.0003146,7]
[328224703,1717073479771,-500.0,0.0003146,7]
[328224704,1717073479781,-458.95,0.0003146,7]
[328224705,1717073479791,-500.0,0.0003146,7]
[328224706,1717073479800,-500.0,0.0003146,7]
[328224707,1717073479810,-500.0,0.0003146,7]
[328224708,1717073479819,-500.0,0.0003146,7]
[328224709,1717073479829,-500.0,0.0003146,7]
[328224710,1717073479838,-964.5,0.0003146,7]
[328224711,1717073479848,-500.0,0.0003146,7]
[328224712,1717073479858,-500.0,0.0003146,7]
[328224713,1717073479868,-617.25,0.0003146,7]
[328224714,1717073479878,-500.0,0.0003146,7]
[328224715,1717073479887,-500.0,0.0003146,7]
[328224716,1717073479896,-571.25,0.0003146,7]
[328224717,1717073479905,-500.0,0.0003146,7]
[328224718,1717073479914,-500.0,0.0003146,7]
[328224719,1717073479924,-500.0,0.0003146,7]
[328224720,1717073479937,-505.09,0.0003146,7]
[328224721,1717073479947,-500.0,0.0003146,7]
[328224722,1717073479956,-500.0,0.0003146,7]
[328224723,1717073479966,-373.65,0.0003146,7]
[328224724,1717073479976,-800.69,0.0003146,7]
[328224725,1717073479985,-500.0,0.0003146,7]
[328224726,1717073479995,-500.0,0.0003146,7]
[328224727,1717073480010,-500.0,0.0003146,7]
[328224728,1717073480022,-1212.84,0.0003146,7]
[328224729,1717073480031,-500.0,0.0003146,7]
[328224730,1717073480041,-500.0,0.0003146,7]
[328224731,1717073480051,-504.1,0.0003146,7]
[328224732,1717073480061,-500.0,0.0003146,7]
[328224733,1717073480070,-500.0,0.0003146,7]
[328224734,1717073480080,-500.0,0.0003146,7]
[328224735,1717073480089,-500.0,0.0003146,7]
[328224736,1717073480099,-218.9,0.0003146,7]
[328224737,1717073480108,-500.0,0.0003146,7]
[328224738,1717073480117,-500.0,0.0003146,7]
[328224739,1717073480127,-500.0,0.0003146,7]
[328224740,1717073480137,-500.0,0.0003146,7]
[328224741,1717073480146,-500.0,0.0003146,7]
[328224742,1717073480155,-500.0,0.0003146,7]
[328224743,1717073480165,-1049.93,0.0003146,7]
[328224744,1717073480175,-500.0,0.0003146,7]
[328224745,1717073480185,-500.0,0.0003146,7]
[328224746,1717073480194,-527.62,0.0003146,7]
[328224747,1717073480203,-500.0,0.0003146,7]
[328224748,1717073480212,-627.47,0.0003146,7]
[328224749,1717073480222,-500.0,0.0003146,7]
[328224750,1717073480231,-500.0,0.0003146,7]
[328224751,1717073480241,-500.0,0.0003146,7]
[328224752,1717073480253,-500.0,0.0003146,7]
[328224753,1717073480262,-565.59,0.0003146,7]
[328224754,1717073480271,-2446.16,0.0003146,7]
[328224755,1717073480280,-500.0,0.0003146,7]
[328224756,1717073480289,-1052.8,0.0003146,7]
[328224757,1717073480298,-500.0,0.0003146,7]
[328224758,1717073480307,-1007.21,0.0003146,7]
[328224759,1717073480317,-558.55513912,0.0003146,7]
[328224760,1717073480326,-585.6,0.0003146,7]
[328224761,1717073480336,-643.63,0.0003146,7]
[328224762,1717073480345,-500.0,0.0003146,7]
[328224763,1717073480355,-2399.48,0.0003146,7]
[328224764,1717073480364,-500.0,0.0003146,7]
[328224765,1717073480373,-500.0,0.0003146,7]
[328224766,1717073480382,-500.0,0.0003146,7]
[328224767,1717073480392,-191.46,0.0003146,7]
[328224768,1717073480401,-151.0,0.0003146,7]
[328224769,1717073480410,-778.96,0.0003146,7]
[328224770,1717073480420,-500.0,0.0003146,7]
[328224771,1717073480429,-232.76,0.0003146,7]
[328224772,1717073480438,-460.6,0.0003146,7]
[328224773,1717073480447,-500.0,0.0003146,7]
[328224774,1717073480456,-500.0,0.0003146,7]
[328224775,1717073480466,-500.0,0.0003146,7]
[328224776,1717073480475,-500.0,0.0003146,7]
[328224777,1717073480484,-500.0,0.0003146,7]
[328224778,1717073480494,-632.76,0.0003146,7]
[328224779,1717073480507,-500.0,0.0003146,7]
[328224780,1717073480517,-500.0,0.0003146,7]
[328224781,1717073480526,-500.0,0.0003146,7]
[328224782,1717073480534,-500.0,0.0003146,7]
[328224783,1717073480542,-500.0,0.0003146,7]
[328224784,1717073480551,-2286.58,0.0003146,7]
[328224785,1717073480560,-500.0,0.0003146,7]
[328224786,1717073480569,-500.0,0.0003146,7]
[328224787,1717073480578,-450.25193208,0.0003146,7]
[328224788,1717073480587,-500.0,0.0003146,7]
[328224789,1717073480597,-171.2,0.0003146,7]
[328224790,1717073480606,-500.0,0.0003146,7]
[328224791,1717073480615,-579.68,0.0003146,7]
[328224792,1717073480624,-500.0,0.0003146,7]
[328224793,1717073480633,-500.0,0.0003146,7]
[328224794,1717073480643,-500.0,0.0003146,7]
[328224795,1717073480652,-500.0,0.0003146,7]
[328224796,1717073480661,-500.0,0.00031461,7]
[328224797,1717073480670,-500.0,0.00031461,7]
[328224798,1717073480680,-500.0,0.00031461,7]
[328224799,1717073480689,-500.0,0.00031461,7]
[328224800,1717073480698,-171.14,0.00031461,7]
[328224801,1717073480707,-500.0,0.00031461,7]
[328224802,1717073480717,-1765.48,0.00031494,7]
[328224803,1717073480726,-500.0,0.00031494,7]
[328224804,1717073480735,-1538.81,0.00031494,7]
[328224805,1717073480745,-500.0,0.00031494,7]
[328224806,1717073480758,-500.0,0.00031713,7]
[328224807,1717073480768,-366.9,0.00031713,7]
[328224808,1717073480778,-500.0,0.00031713,7]
[328224809,1717073480787,-314.15,0.00031733,7]
[328224810,1717073480797,-595.01,0.00031733,7]
[328224811,1717073480807,-500.0,0.00031733,7]
[328224812,1717073480816,-500.0,0.00031733,7]
[328224813,1717073480826,-500.0,0.00031733,7]
[328224814,1717073480836,-465.54756142,0.00031733,7]
[328224815,1717073480846,-500.0,0.00031733,7]
[328224816,1717073480855,-533.94,0.00031733,7]
[328224817,1717073480865,-500.0,0.00031733,7]
[328224818,1717073480874,-500.0,0.00031733,7]
[328224819,1717073480884,-500.0,0.00031733,7]
[328224820,1717073480893,-500.0,0.00031733,7]
[328224821,1717073480902,-500.0,0.00031733,7]
[328224822,1717073480912,-556.88,0.00031733,7]
[328224823,1717073480922,-1291.87,0.00031733,7]
[328224824,1717073480931,-500.0,0.00031733,7]
[328224825,1717073480942,-500.0,0.00031733,7]
[328224826,1717073480953,-3455.84,0.00031733,7]
[328224827,1717073480963,-500.0,0.00031733,7]
[328224828,1717073480973,-353.5,0.00031733,7]
[328224829,1717073480982,-500.0,0.00031733,7]
[328224830,1717073480994,-500.0,0.00031733,7]
[328224831,1717073481005,-500.0,0.00031734,7]
[328224832,1717073481015,-303.15,0.00031734,7]
[328224833,1717073481025,-583.39,0.00031734,7]
[328224834,1717073481035,-500.0,0.00031734,7]
[328224835,1717073481045,-500.0,0.00031734,7]
[328224836,1717073481054,-500.0,0.00031734,7]
[328224837,1717073481064,-500.0,0.00031734,7]
[328224838,1717073481074,-500.0,0.00031734,7]
[328224839,1717073481083,-500.0,0.00031734,7]
[328224840,1717073481093,-500.0,0.00031734,7]
[328224841,1717073481104,-444.82,0.00031734,7]
[328224842,1717073481114,-500.0,0.00031734,7]
[328224843,1717073481123,-500.0,0.00031734,7]
[328224844,1717073481132,-728.3,0.00031734,7]
[328224845,1717073481142,-500.0,0.00031734,7]
[328224846,1717073481152,-500.0,0.00031734,7]
[328224847,1717073481161,-440.27,0.00031734,7]
[328224848,1717073481170,-300.88,0.00031734,7]
[328224849,1717073481180,-204.52,0.00031734,7]
[328224850,1717073481190,-154.15,0.00031734,7]
[328224851,1717073481200,-500.0,0.00031734,7]
[328224852,1717073481210,-500.0,0.00031734,7]
[328224853,1717073481219,-500.0,0.00031734,7]
[328224854,1717073481229,-500.0,0.00031734,7]
[328224855,1717073481238,-500.0,0.00031734,7]
[328224856,1717073481248,-968.37,0.00031734,7]
[328224857,1717073481259,-500.0,0.00031734,7]
[328224858,1717073481269,-221.75,0.00031734,7]
[328224859,1717073481278,-699.67,0.00031734,7]
[328224860,1717073481288,-500.0,0.00031734,7]
[328224861,1717073481297,-500.0,0.00031734,7]
[328224862,1717073481307,-768.83,0.00031734,7]
[328224863,1717073481316,-693.43,0.00031734,7]
[328224864,1717073481326,-500.0,0.00031734,7]
[328224865,1717073481335,-500.0,0.00031734,7]
[328224866,1717073481345,-500.0,0.00031734,7]
[328224867,1717073481461,-500.0,0.00031734,7]
[328224868,1717073481471,-500.0,0.00031734,7]
[328224869,1717073481481,-500.0,0.00031734,7]
[328224870,1717073481490,-500.0,0.00031734,7]
[328224871,1717073481499,-964.5,0.00031734,7]
[328224872,1717073481512,-500.0,0.00031734,7]
[328224873,1717073481521,-500.0,0.00031734,7]
[328224874,1717073481531,-617.25,0.00031734,7]
[328224875,1717073481540,-500.0,0.00031734,7]
[328224876,1717073481550,-500.0,0.00031734,7]
[328224877,1717073481560,-500.0,0.00031734,7]
[328224878,1717073481569,-500.0,0.00031734,7]
[328224879,1717073481579,-500.0,0.00031734,7]
[328224880,1717073481589,-505.09,0.00031734,7]
[328224881,1717073481599,-500.0,0.00031734,7]
[328224882,1717073481608,-500.0,0.00031734,7]
[328224883,1717073481617,-800.69,0.00031734,7]
[328224884,1717073481626,-500.0,0.00031734,7]
[328224885,1717073481636,-500.0,0.00031734,7]
[328224886,1717073481646,-212.95,0.00031734,7]
[328224887,1717073481656,-1212.84,0.00031734,7]
[328224888,1717073481666,-500.0,0.00031734,7]
[328224889,1717073481675,-500.0,0.00031734,7]
[328224890,1717073481685,-500.0,0.00031734,7]
[328224891,1717073481694,-500.0,0.00031734,7]
[328224892,1717073481704,-500.0,0.00031734,7]
[328224893,1717073481713,-500.0,0.00031734,7]
[328224894,1717073481723,-500.0,0.00031734,7]
[328224895,1717073481732,-500.0,0.00031734,7]
[328224896,1717073481741,-500.0,0.00031734,7]
[328224897,1717073481750,-597.78,0.00031734,7]
[328224898,1717073481762,-500.0,0.00031734,7]
[328224899,1717073481771,-500.0,0.00031734,7]
[328224900,1717073481780,-1049.93,0.00031734,7]
[328224901,1717073481790,-500.0,0.00031734,7]
[328224902,1717073481799,-500.0,0.00031734,7]
[328224903,1717073481808,-500.0,0.00031734,7]
[328224904,1717073481818,-627.47,0.00031734,7]
[328224905,1717073481827,-466.0,0.00031734,7]
[328224906,1717073481837,-500.0,0.00031734,7]
[328224907,1717073481848,-500.0,0.00031734,7]
[328224908,1717073481858,-565.59,0.00031734,7]
[328224909,1717073481869,-2446.16,0.00031734,7]
[328224910,1717073481879,-500.0,0.00031734,7]
[328224911,1717073481889,-1052.8,0.00031734,7]
[328224912,1717073481898,-556.5,0.00031734,7]
[328224913,1717073481907,-1007.21,0.00031734,7]
[328224914,1717073481917,-585.6,0.00031734,7]
[328224915,1717073481926,-643.63,0.00031734,7]
[328224916,1717073481939,-500.0,0.00031734,7]
[328224917,1717073481950,-2399.48,0.00031734,7]
[328224918,1717073481959,-500.0,0.00031734,7]
[328224919,1717073481969,-500.0,0.00031734,7]
[328224920,1717073481980,-500.0,0.00031734,7]
[328224921,1717073481990,-778.96,0.00031734,7]
[328224922,1717073481999,-500.0,0.00031734,7]
[328224923,1717073482011,-500.0,0.00031734,7]
[328224924,1717073482022,-500.0,0.00031734,7]
[328224925,1717073482033,-500.0,0.00031734,7]
[328224926,1717073482042,-193.7,0.00031734,7]
[328224927,1717073482052,-500.0,0.00031734,7]
[328224928,1717073482062,-632.76,0.00031734,7]
[328224929,1717073482072,-500.0,0.00031734,7]
[328224930,1717073482081,-500.0,0.00031734,7]
[328224931,1717073482091,-500.0,0.00031734,7]
[328224932,1717073482100,-2286.58,0.00031734,7]
[328224933,1717073482110,-595.78,0.00031734,7]
[328224934,1717073482120,-268.88,0.00031734,7]
[328224935,1717073482129,-500.0,0.00031734,7]
[328224936,1717073482139,-500.0,0.00031734,7]
[328224937,1717073482149,-500.0,0.00031734,7]
[328224938,1717073482158,-500.0,0.00031734,7]
[328224939,1717073482168,-500.0,0.00031734,7]
[328224940,1717073482177,-500.0,0.00031734,7]
[328224941,1717073482188,-529.49662895,0.00031735,7]
[328224942,1717073482198,-500.0,0.00031735,7]
[328224943,1717073482209,-273.14608195,0.00031735,7]
[328224944,1717073482219,-192.98749884,0.00031735,7]
[328224945,1717073482229,-500.0,0.00031735,7]
[328224946,1717073482240,-399.99,0.00031746,2]
[328224947,1717073482251,-1030.24350931,0.00031752,2]
[328224948,1717073482262,-1765.48,0.00031768,7]
[328224949,1717073482271,-500.0,0.00031768,7]
[328224950,1717073482280,-1538.81,0.00031768,7]
[328224951,1717073482289,-500.0,0.00031768,7]
[328224952,1717073482299,-500.0,0.00031987,7]
[328224953,1717073482308,-366.9,0.00031987,7]
[328224954,1717073482317,-474.22,0.00031987,7]
[328224955,1717073482327,-334.19792387,0.00032,4]
[328224956,1717073482336,-595.01,0.00032007,7]
[328224957,1717073482346,-500.0,0.00032007,7]
[328224958,1717073482355,-500.0,0.00032007,7]
[328224959,1717073482365,-500.0,0.00032007,7]
[328224960,1717073482374,-500.0,0.00032007,7]
[328224961,1717073482383,-533.94,0.00032007,7]
[328224962,1717073482392,-500.0,0.00032007,7]
[328224963,1717073482402,-500.0,0.00032007,7]
[328224964,1717073482411,-500.0,0.00032007,7]
[328224965,1717073482420,-500.0,0.00032007,7]
[328224966,1717073482430,-500.0,0.00032007,7]
[328224967,1717073482439,-556.88,0.00032007,7]
[328224968,1717073482449,-1291.87,0.00032007,7]
[328224969,1717073482458,-500.0,0.00032007,7]
[328224970,1717073482467,-500.0,0.00032007,7]
[328224971,1717073482477,-3455.84,0.00032007,7]
[328224972,1717073482486,-500.0,0.00032007,7]
[328224973,1717073482495,-343.3,0.00032007,7]
[328224974,1717073482505,-500.0,0.00032007,7]
[328224975,1717073482515,-500.0,0.00032008,7]
[328224976,1717073482524,-583.39,0.00032008,7]
[328224977,1717073482533,-500.0,0.00032008,7]
[328224978,1717073482543,-500.0,0.00032008,7]
[328224979,1717073482552,-500.0,0.00032008,7]
[328224980,1717073482561,-500.0,0.00032008,7]
[328224981,1717073482570,-500.0,0.00032008,7]
[328224982,1717073482579,-500.0,0.00032008,7]
[328224983,1717073482589,-500.0,0.00032008,7]
[328224984,1717073482598,-500.0,0.00032008,7]
[328224985,1717073482609,-500.0,0.00032008,7]
[328224986,1717073482618,-728.3,0.00032008,7]
[328224987,1717073482628,-500.0,0.00032008,7]
[328224988,1717073482637,-628.6,0.00032008,7]
[328224989,1717073482647,-500.0,0.00032008,7]
[328224990,1717073482657,-500.0,0.00032008,7]
[328224991,1717073482667,-500.0,0.00032008,7]
[328224992,1717073482676,-500.0,0.00032008,7]
[328224993,1717073482686,-500.0,0.00032008,7]
[328224994,1717073482696,-968.37,0.00032008,7]
[328224995,1717073482705,-500.0,0.00032008,7]
[328224996,1717073482716,-699.67,0.00032008,7]
[328224997,1717073482726,-500.0,0.00032008,7]
[328224998,1717073482735,-500.0,0.00032008,7]
[328224999,1717073482745,-768.83,0.00032008,7]
[328225000,1717073482756,-693.43,0.00032008,7]
[328225001,1717073482766,-190.0,0.00032008,7]
[328225002,1717073482776,-500.0,0.00032008,7]
[328225003,1717073482785,-500.0,0.00032008,7]
[328225004,1717073482794,-500.0,0.00032008,7]
[328225005,1717073482804,-500.0,0.00032008,7]
[328225006,1717073482814,-338.3,0.00032008,7]
[328225007,1717073482823,-500.0,0.00032008,7]
[328225008,1717073482833,-964.5,0.00032008,7]
[328225009,1717073482843,-500.0,0.00032008,7]
[328225010,1717073482852,-500.0,0.00032008,7]
[328225011,1717073482862,-617.25,0.00032008,7]
[328225012,1717073482871,-500.0,0.00032008,7]
[328225013,1717073482881,-500.0,0.00032008,7]
[328225014,1717073482890,-500.0,0.00032008,7]
[328225015,1717073482900,-500.0,0.00032008,7]
[328225016,1717073482909,-500.0,0.00032008,7]
[328225017,1717073482919,-505.09,0.00032008,7]
[328225018,1717073482928,-500.0,0.00032008,7]
[328225019,1717073482946,-500.0,0.00032008,7]
[328225020,1717073482956,-800.69,0.00032008,7]
[328225021,1717073482967,-500.0,0.00032008,7]
[328225022,1717073482976,-500.0,0.00032008,7]
[328225023,1717073482986,-1212.84,0.00032008,7]
[328225024,1717073482995,-500.0,0.00032008,7]
[328225025,1717073483006,-500.0,0.00032008,7]
[328225026,1717073483015,-495.25,0.00032008,7]
[328225027,1717073483024,-500.0,0.00032008,7]
[328225028,1717073483033,-379.55,0.00032008,7]
[328225029,1717073483042,-500.0,0.00032008,7]
[328225030,1717073483051,-500.0,0.00032008,7]
[328225031,1717073483060,-500.0,0.00032008,7]
[328225032,1717073483070,-500.0,0.00032008,7]
[328225033,1717073483079,-305.2,0.00032008,7]
[328225034,1717073483090,-500.0,0.00032008,7]
[328225035,1717073483099,-1049.93,0.00032008,7]
[328225036,1717073483109,-500.0,0.00032008,7]
[328225037,1717073483118,-500.0,0.00032008,7]
[328225038,1717073483128,-500.0,0.00032008,7]
[328225039,1717073483138,-627.47,0.00032008,7]
[328225040,1717073483147,-500.0,0.00032008,7]
[328225041,1717073483156,-500.0,0.00032008,7]
[328225042,1717073483166,-565.59,0.00032008,7]
[328225043,1717073483176,-2446.16,0.00032008,7]
[328225044,1717073483185,-500.0,0.00032008,7]
[328225045,1717073483195,-1052.8,0.00032008,7]
[328225046,1717073483204,-1007.21,0.00032008,7]
[328225047,1717073483213,-585.6,0.00032008,7]
[328225048,1717073483223,-643.63,0.00032008,7]
[328225049,1717073483232,-500.0,0.00032008,7]
[328225050,1717073483242,-2399.48,0.00032008,7]
[328225051,1717073483253,-500.0,0.00032008,7]
[328225052,1717073483264,-500.0,0.00032008,7]
[328225053,1717073483273,-500.0,0.00032008,7]
[328225054,1717073483283,-778.96,0.00032008,7]
[328225055,1717073483294,-500.0,0.00032008,7]
[328225056,1717073483304,-500.0,0.00032008,7]
[328225057,1717073483315,-495.3,0.00032008,7]
[328225058,1717073483324,-361.85,0.00032008,7]
[328225059,1717073483333,-500.0,0.00032008,7]
[328225060,1717073483342,-632.76,0.00032008,7]
[328225061,1717073483352,-500.0,0.00032008,7]
[328225062,1717073483362,-500.0,0.00032008,7]
[328225063,1717073483373,-500.0,0.00032008,7]
[328225064,1717073483384,-2286.58,0.00032008,7]
[328225065,1717073483394,-506.85,0.00032008,7]
[328225066,1717073483405,-500.0,0.00032008,7]
[328225067,1717073483415,-500.0,0.00032008,7]
[328225068,1717073483426,-500.0,0.00032008,7]
[328225069,1717073483435,-270.95,0.00032008,7]
[328225070,1717073483446,-379.8224773,0.00032009,7]
[328225071,1717073483456,-500.0,0.00032009,7]
[328225072,1717073483468,-1765.48,0.00032042,7]
[328225073,1717073483479,-500.0,0.00032042,7]
[328225074,1717073483489,-1538.81,0.00032042,7]
[328225075,1717073483499,-500.0,0.00032042,7]
[328225076,1717073483511,-409.493679,0.000321,2]
[328225077,1717073483520,-150.61262182,0.00032106,7]
[328225078,1717073483528,-500.0,0.00032261,7]
[328225079,1717073483537,-366.9,0.00032261,7]
[328225080,1717073483547,-595.01,0.00032281,7]
[328225081,1717073483659,-438.43,0.00032281,7]
[328225082,1717073483669,-500.0,0.00032281,7]
[328225083,1717073483679,-500.0,0.00032281,7]
[328225084,1717073483688,-500.0,0.00032281,7]
[328225085,1717073483697,-533.94,0.00032281,7]
[328225086,1717073483707,-500.0,0.00032281,7]
[328225087,1717073483718,-500.0,0.00032281,7]